bitfinex/quotes_SOLUSD_20251103
["timestamp","ask_amount","ask_price","bid_price","bid_amount"]
[1762183640769,0.62,172.01,171.86,3.58365262]
[1762183640770,0.62,171.97,171.96,6.95247934]
[1762183641107,106.49361548,172.01,171.86,3.58365262]
[1762183641108,0.62,171.9,171.86,3.58365262]
[1762183641272,0.62,171.88,171.86,3.58365262]
[1762183641478,50.68,172.0,171.86,3.58365262]
[1762183641479,0.62,171.87,171.86,1e-08]
[1762183641670,0.68,172.0,171.51,53.38058083]
[1762183641671,0.62,171.86,171.85,1e-08]
[1762183641991,0.62,171.67,171.62,22.6561153]
[1762183642188,0.62,171.7,171.62,22.1561153]
[1762183642363,0.62,171.76,171.62,22.1561153]
[1762183642563,1.12,171.82,171.67,0.7]
[1762183642872,0.68,171.9,171.62,22.1561153]
[1762183642873,1.12,171.7,171.62,22.1561153]
[1762183643081,7.81984849,171.83,171.62,22.1561153]
[1762183643082,1.12,171.63,171.62,22.1561153]
[1762183643263,1.12,171.63,171.62,21.4561153]
[1762183643264,1.03725,171.63,171.62,21.4561153]
[1762183643468,50.0,171.65,171.62,21.4561153]
[1762183643667,50.0,171.69,171.63,0.7]
[1762183643880,29.74720412,172.01,171.63,0.7]
[1762183643881,50.0,171.74,171.63,0.7]
[1762183644081,1.03725,171.63,171.62,21.4561153]
[1762183644286,1.03725,171.56,171.51,23.52272727]
[1762183644518,1.03725,171.41,171.29,24.30785124]
[1762183644670,1.03725,171.45,171.41,0.7]
[1762183644876,50.0,171.44,171.4,23.91528926]
[1762183645179,1.99999999,171.58,171.4,23.91528926]
[1762183645377,1.99999999,171.57,171.4,23.91528926]
[1762183645577,1.99999999,171.48,171.4,23.91528926]
[1762183645774,1.99999999,171.47,171.4,23.41528926]
[1762183646076,8.34372224,171.4,171.29,24.30785124]
[1762183646279,1.99999999,171.31,171.08,0.7]
[1762183646476,0.59,171.3,171.18,30.54194567]
[1762183646680,50.0,171.22,171.18,24.70041322]
[1762183646882,0.59,171.3,171.18,24.70041322]
[1762183646883,50.59,171.3,171.18,24.70041322]
[1762183647115,1.99999999,171.19,171.18,21.65078895]
[1762183647318,1.99999999,171.19,171.07,25.09297521]
[1762183647319,1.99999999,171.14,171.07,25.09297521]
[1762183647476,100.0,171.14,171.13,9.41]
[1762183647672,17.24,171.2,171.14,5.84316933]
[1762183647873,50.0,171.18,171.14,0.71]
[1762183648079,0.72,171.17,171.13,9.41]
[1762183648289,1.99999999,171.1,170.85,25.87809917]
[1762183648487,1.99999999,171.07,170.85,25.87809917]
[1762183648690,1.99999999,171.03,170.85,25.87809917]
[1762183649016,50.72,171.16,170.85,25.87809917]
[1762183649017,50.0,171.15,170.91,0.71]
[1762183649312,50.0,171.08,171.0,165.2300863]
[1762183649510,50.0,171.09,171.0,118.35244917]
[1762183649819,100.0,171.12,171.0,118.35244917]
[1762183650107,50.0,171.02,171.0,118.35244917]
[1762183650310,1.99999999,171.01,171.0,66.24474419]
[1762183650610,1.99999999,171.01,170.85,25.87809917]
[1762183650611,119.23999999,170.97,170.96,1e-08]
[1762183650912,119.23999999,170.97,170.7,0.71]
[1762183650913,50.0,170.76,170.39,1.99999999]
[1762183651210,1.99999999,170.49,170.2,0.71]
[1762183651384,50.0,170.54,170.18,37.73347107]
[1762183651385,50.0,170.41,170.18,37.73347107]
[1762183651582,50.0,170.46,170.19,5.87578588]
[1762183651789,56.39719068,170.52,170.18,37.73347107]
[1762183651790,7.2964149,170.4,170.18,37.73347107]
[1762183652089,50.0,170.3,170.18,37.73347107]
[1762183652281,19.99081678,170.39,170.18,37.73347107]
[1762183652282,50.0,170.25,170.18,37.73347107]
[1762183652483,34.41,170.47,170.19,0.21]
[1762183652689,34.41,170.45,170.2,20.56404229]
[1762183652886,17.24,170.38,170.18,43.60938673]
[1762183653103,0.5,170.44,170.19,5.87578588]
[1762183653283,0.5,170.43,170.17,0.02997002]
[1762183653481,0.5,170.43,170.0,43.17319008]
[1762183653482,9.67023314,170.13,170.0,43.17319008]
[1762183653678,3.04609188,169.8,169.79,50.0]
[1762183653980,3.04609188,169.8,169.25,26.28]
[1762183653981,6.61112771,170.11,169.72,6.5933484]
[1762183654199,50.0,170.31,169.66,5.8940542]
[1762183654200,17.24,170.1,169.66,20.62940725]
[1762183654374,34.41,170.05,169.67,23.26]
[1762183654583,50.0,170.15,169.68,19.59987384]
[1762183654776,2.0,170.74,169.67,28.4845753]
[1762183654777,3.04746878,170.51,169.7,20.62463169]
[1762183654983,3.04746878,170.51,169.71,35.09769665]
[1762183655182,29.08752584,170.57,169.71,11.83769665]
[1762183655497,1.99999999,170.4,169.72,7.19666775]
[1762183655704,6.71780836,170.42,169.73,6.02067375]
[1762183656007,5.24530859,170.41,169.74,29.78750519]
[1762183656319,3.0458527,170.56,169.76,29.46736062]
[1762183656608,1.99999999,170.72,169.81,29.28209574]
[1762183656901,50.0,170.69,170.44,5.86716733]
[1762183657213,5.84910968,170.97,170.45,8.30242737]
[1762183657417,1.99999999,170.91,170.44,49.8709223]
[1762183657707,1.99999999,170.83,170.44,20.53508565]
[1762183657900,1.99999999,170.92,170.46,29.57502665]
[1762183658197,50.0,171.08,170.46,29.57502665]
[1762183658198,1.99999999,170.97,170.46,29.57502665]
[1762183658402,50.0,170.96,170.47,24.03]
[1762183658710,51.99999999,171.26,170.52,29.23516413]
[1762183658999,29.46820777,171.43,170.51,20.52665532]
[1762183659000,1.99999999,171.32,170.69,29.87042526]
[1762183659318,1.99999999,171.36,170.85,50.0]
[1762183659608,1.99999999,171.36,170.86,22.17439812]
[1762183659780,29.08514103,171.8,170.86,22.17439812]
[1762183659781,1.99999999,171.35,170.86,22.17439812]
[1762183659979,1.99999999,171.19,170.87,0.71]
[1762183660180,57.2964149,171.58,170.88,15.70900644]
[1762183660181,7.2964149,171.23,170.88,15.70900644]
[1762183660380,7.2964149,171.35,170.88,15.70900644]
[1762183660381,7.2964149,171.2,170.88,8.30242737]
[1762183660610,1.99999999,171.3,170.87,0.71]
[1762183660790,1.99999999,171.3,170.88,20.48220973]
[1762183660994,1.99999999,171.3,170.88,49.74250935]
[1762183661196,1.99999999,171.3,170.88,21.19220973]
[1762183661394,7.2964149,171.09,170.88,0.71]
[1762183661600,7.2964149,171.06,170.88,0.71]
[1762183661808,7.2964149,171.08,170.88,0.71]
[1762183662006,5.83805242,171.29,170.88,0.71]
[1762183662207,79.15951294,171.4,170.88,0.71]
[1762183662208,7.2964149,171.27,170.88,0.71]
[1762183662508,7.2964149,171.58,170.88,0.71]
[1762183662509,7.2964149,171.17,170.88,0.71]
[1762183662694,20.43094295,171.31,170.89,20.48101116]
[1762183662894,7.2964149,171.1,170.88,0.71]
[1762183663083,20.43094295,171.31,170.88,6.56184686]
[1762183663289,5.83681855,171.33,170.88,21.19199667]
[1762183663506,50.0,171.52,170.9,29.14714283]
[1762183663817,7.2964149,171.41,170.93,29.85102891]
[1762183663992,7.2964149,171.41,170.95,29.88093805]
[1762183664194,101.54534854,171.56,170.94,8.11657907]
[1762183664394,29.65248417,171.51,170.95,0.71]
[1762183664598,50.0,171.48,170.95,0.71]
[1762183664806,78.68967123,171.56,170.96,20.47262516]
[1762183664807,7.2964149,171.27,170.96,20.47262516]
[1762183665106,5.83805242,171.29,170.95,6.55960925]
[1762183665107,7.2964149,171.22,170.95,6.55960925]
[1762183665424,70.43318348,171.29,170.95,0.71]
[1762183665589,70.43318348,171.29,170.5,26.34]
[1762183665590,7.2964149,170.96,170.69,0.71]
[1762183665912,50.0,171.09,170.69,0.71]
[1762183666091,50.0,171.1,170.69,0.71]
[1762183666288,7.2964149,170.9,170.69,0.71]
[1762183666489,57.2964149,171.12,170.69,0.71]
[1762183666706,20.45467827,171.11,170.7,20.50380784]
[1762183666884,20.45467827,171.11,170.79,1.99999999]
[1762183667088,20.45467827,171.11,170.81,1.99999999]
[1762183667387,49.67564723,171.11,170.72,1.99999999]
[1762183667586,20.45467827,171.11,170.76,1.99999999]
[1762183667822,20.45467827,171.11,170.69,0.71]
[1762183667988,7.2964149,170.83,170.5,1.99999999]
[1762183668193,17.24,170.96,170.5,1.99999999]
[1762183668490,7.2964149,170.89,170.45,20.53388089]
[1762183668690,5.85720142,170.73,170.5,1.99999999]
[1762183669012,7.2964149,170.74,170.5,5.53872501]
[1762183669185,50.0,170.92,170.46,0.71]
[1762183669509,7.2964149,170.77,170.47,13.33416457]
[1762183669695,50.0,170.93,170.48,1.99999999]
[1762183670214,49.70469562,171.01,170.54,31.26395199]
[1762183670512,49.70469562,171.01,170.49,0.71]
[1762183670513,7.2964149,170.96,170.67,0.14216157]
[1762183670690,49.70469562,171.01,170.67,0.14216157]
[1762183670895,5.84521861,171.08,170.75,0.14216157]
[1762183671093,5.84447643,171.11,170.81,0.14216157]
[1762183671414,1.99999999,171.18,170.9,1.99999999]
[1762183671606,1.99999999,171.27,170.94,0.14216157]
[1762183671798,22.43199064,171.3,170.92,0.14216157]
[1762183671998,22.43199064,171.3,170.82,0.21324235]
[1762183671999,22.43199064,171.3,170.98,1.99999999]
[1762183672210,22.43199064,171.3,170.96,0.14216157]
[1762183672211,7.2964149,171.25,170.96,2.14216156]
[1762183672418,7.2964149,171.25,170.75,0.71]
[1762183672419,7.2964149,171.02,170.75,0.71]
[1762183672618,50.0,171.25,170.75,0.71]
[1762183672619,2.14216156,171.03,170.75,0.71]
[1762183672794,0.14216157,171.01,170.75,0.71]
[1762183672989,0.14216157,170.96,170.75,0.71]
[1762183673198,7.2964149,170.92,170.75,0.71]
[1762183673396,7.2964149,170.92,170.44,50.0]
[1762183673397,1.99999999,170.87,170.55,5.86338317]
[1762183673718,7.2964149,170.75,170.58,0.71]
[1762183673914,0.14216157,170.7,170.58,0.71]
[1762183674220,0.14216157,170.76,170.58,0.71]
[1762183674397,0.14216157,170.75,170.58,0.71]
[1762183674595,0.14216157,170.75,170.38,0.21324235]
[1762183674596,7.2964149,170.61,170.38,0.71]
[1762183674797,1.99999999,170.72,170.19,29.14939605]
[1762183674798,7.2964149,170.49,170.25,5.87371512]
[1762183675010,0.14216157,170.46,170.19,0.71]
[1762183675316,0.14216157,170.46,169.89,50.0]
[1762183675317,1.99999999,170.27,170.01,17.24]
[1762183675518,1.99999999,170.27,169.7,29.40524415]
[1762183675519,1.99999999,170.19,169.84,1.99999999]
[1762183675724,0.14216157,170.17,169.59,0.71]
[1762183675903,5.40903655,170.19,169.26,23.34]
[1762183675904,0.14216157,169.96,169.51,60.17021882]
[1762183676221,0.21324235,170.03,169.72,1.99999999]
[1762183676397,0.14216157,170.02,169.76,1.99999999]
[1762183676596,0.21324235,170.03,169.66,5.53872501]
[1762183676797,0.21324235,170.03,169.69,1.99999999]
[1762183677021,29.08326282,170.22,169.62,59.67393692]
[1762183677022,7.2964149,169.89,169.62,30.19628099]
[1762183677194,7.2964149,169.73,169.62,30.19628099]
[1762183677393,0.17710975,169.64,169.62,30.19628099]
[1762183677594,17.24,169.62,169.4,30.98140496]
[1762183677813,17.24,169.62,169.12,29.54196046]
[1762183677814,7.2964149,169.41,169.29,31.37396694]
[1762183677996,7.2964149,169.41,168.98,5.91760562]
[1762183677997,1.99999999,169.61,169.07,28.48207798]
[1762183678205,0.17730819,169.62,169.0,1.0]
[1762183678206,7.2964149,169.08,169.0,1.0]
[1762183678443,49.5,169.26,168.75,0.71]
[1762183678718,50.0,169.14,168.75,5.55849723]
[1762183678896,50.0,169.14,168.76,4.3761109]
[1762183679096,50.0,169.32,168.76,4.3761109]
[1762183679313,7.2964149,169.28,168.74,21.68840526]
[1762183679522,12.71892599,169.27,168.74,21.58840526]
[1762183679707,17.24,169.26,168.74,27.51455286]
[1762183679911,50.0,168.91,168.31,29.59329053]
[1762183680225,50.0,168.91,167.87,27.93448977]
[1762183680226,6.92627629,168.9,168.28,29.20826389]
[1762183680531,6.92627629,168.9,167.95,26.42]
[1762183680532,57.2964149,168.82,168.33,7.14078133]
[1762183680835,55.92487261,168.78,168.18,35.29958678]
[1762183681004,50.0,168.89,168.41,9.62844313]
[1762183681208,50.0,168.67,168.4,12.63290541]
[1762183681409,50.0,168.75,168.4,12.63290541]
[1762183681617,50.0,168.6,168.4,12.63290541]
[1762183681932,1.99999999,169.05,168.84,3.06635165]
[1762183681933,3.94503385,169.05,168.84,3.06635165]
[1762183682100,4.67024406,169.15,168.92,3.09710734]
[1762183682422,34.41,169.27,168.92,3.09710734]
[1762183682715,0.71,169.38,168.92,3.09710734]
[1762183682716,0.69,169.26,168.92,3.09710734]
[1762183682893,50.0,169.23,168.93,20.71864085]
[1762183683097,50.0,169.45,168.93,20.71864085]
[1762183683336,50.0,169.45,168.93,50.31669921]
[1762183683497,0.69,169.44,168.93,50.31669921]
[1762183683805,1.99999999,169.36,168.93,50.31669921]
[1762183684005,1.99999999,169.48,168.94,0.7]
[1762183684208,5.84892473,169.54,168.94,0.7]
[1762183684414,50.0,169.27,168.95,13.13865502]
[1762183684619,4.08165385,169.56,168.95,7.47538249]
[1762183684920,4.08165385,169.59,168.97,109.48689115]
[1762183685125,50.0,169.48,168.98,13.04765705]
[1762183685296,50.0,169.56,168.98,6.84444298]
[1762183685623,1.99999999,169.63,168.99,0.7]
[1762183685823,7.31606091,169.6,168.99,0.7]
[1762183686033,1.99999999,169.66,169.0,5.8884152]
[1762183686203,50.0,169.59,168.99,0.7]
[1762183686523,50.0,169.57,168.98,58.62220853]
[1762183686695,12.40834271,169.56,168.96,5.91854263]
[1762183686904,50.0,169.54,168.96,20.17414415]
[1762183687140,50.0,169.56,168.97,6.49920338]
[1762183687315,50.0,169.5,168.97,17.04026316]
[1762183687515,50.0,169.56,168.98,0.7]
[1762183687721,1.99999999,169.77,168.99,17.14291205]
[1762183687906,50.0,169.71,169.0,0.7]
[1762183688238,31.46813498,170.04,169.0,0.7]
[1762183688239,50.0,169.86,169.01,17.14291205]
[1762183688408,50.0,169.9,169.15,29.89276418]
[1762183688722,0.69,170.22,169.38,29.68112841]
[1762183688925,50.0,170.05,169.41,52.75854184]
[1762183689226,5.41529157,170.34,169.49,79.12624376]
[1762183689425,50.0,170.45,169.69,50.0]
[1762183689727,7.09399931,170.32,169.75,29.35884641]
[1762183690029,7.09399931,170.28,169.77,29.57155852]
[1762183690207,7.09399931,170.29,169.84,29.33738399]
[1762183690537,29.56022885,170.44,169.85,30.46096164]
[1762183690538,33.20957397,170.43,169.85,30.46096164]
[1762183690705,9.98512106,170.42,169.85,56.20355236]
[1762183690904,7.09399931,170.32,169.87,50.03826454]
[1762183691099,7.09399931,170.5,169.87,50.03826454]
[1762183691100,4.74917103,170.43,169.87,79.41694629]
[1762183691302,7.09399931,170.43,169.88,6.63944662]
[1762183691529,3.23595004,170.47,169.92,29.29933102]
[1762183691835,3.24099564,170.61,170.0,29.47056752]
[1762183692009,50.0,170.75,170.02,100.94998988]
[1762183692203,6.31161073,170.75,170.13,50.89738208]
[1762183692406,6.31161073,170.87,170.16,50.08999052]
[1762183692604,1.99999999,170.83,170.2,51.09480528]
[1762183692808,1.99999999,170.81,170.26,49.92364616]
[1762183693005,1.99999999,170.79,170.31,50.0]
[1762183693322,1.99999999,170.64,170.32,0.7]
[1762183693524,0.69,170.63,170.32,29.87765879]
[1762183693731,7.09399931,170.58,170.32,17.55400328]
[1762183694034,1.99999999,170.54,170.23,0.7]
[1762183694330,1.99999999,170.54,170.19,50.0]
[1762183694331,1.99999999,170.54,170.09,29.51877951]
[1762183694517,1.99999999,170.48,170.22,0.7]
[1762183694703,0.69,170.53,170.22,0.7]
[1762183694903,0.69,170.53,170.23,79.30447041]
[1762183695103,0.69,170.62,170.25,29.41213091]
[1762183695328,1.99999999,170.77,170.25,29.41213091]
[1762183695538,0.69,170.81,170.27,79.86786475]
[1762183695716,0.69,170.8,170.28,111.0625156]
[1762183695915,0.69,170.88,170.42,50.0]
[1762183696141,1.99999999,171.01,170.47,50.0]
[1762183696312,1.99999999,170.89,170.49,29.96679626]
[1762183696634,5.84780119,171.01,170.42,17.80604845]
[1762183696635,7.09399931,170.82,170.44,0.7]
[1762183696808,7.09399931,170.71,170.43,20.53629055]
[1762183697009,7.09399931,170.65,170.43,5.86751158]
[1762183697206,7.09399931,170.65,170.07,50.0]
[1762183697207,7.26502949,170.69,170.24,0.7]
[1762183697425,7.09399931,170.55,170.25,5.87371512]
[1762183697626,7.09399931,170.53,170.26,0.7]
[1762183697859,0.69,170.7,170.26,0.7]
[1762183698142,17.93328716,170.7,170.26,0.7]
[1762183698343,7.95502949,170.69,170.25,20.55800293]
[1762183698517,7.09399931,170.57,170.25,20.55800293]
[1762183698722,0.69,170.68,170.26,0.7]
[1762183698922,0.69,170.68,170.09,4.70622597]
[1762183698923,7.09399931,170.42,169.97,5.88339118]
[1762183699140,7.09399931,170.28,169.91,5.20021902]
[1762183699425,7.09399931,170.28,169.79,29.11902047]
[1762183699426,11.7041033,170.28,169.79,29.11902047]
[1762183699626,0.69,170.27,169.79,29.11902047]
[1762183699819,0.14216157,170.19,169.8,0.7]
[1762183700025,0.14216157,170.26,169.8,0.7]
[1762183700242,0.83216157,170.26,169.81,29.33183533]
[1762183700443,0.69,170.26,169.81,29.33183533]
[1762183700656,0.69,170.26,169.78,37.8589081]
[1762183700657,0.69,170.26,169.82,11.26190231]
[1762183700822,5.87613115,170.18,169.8,5.8892815]
[1762183701021,0.14216157,170.17,169.81,29.33183533]
[1762183701330,0.83216157,170.17,169.82,29.99369726]
[1762183701529,0.69,170.17,169.82,0.7]
[1762183701849,0.69,170.24,169.83,5.32245569]
[1762183702042,0.69,170.24,169.82,37.73314388]
[1762183702043,0.69,170.24,169.84,0.91324235]
[1762183702227,0.14216157,170.23,169.85,29.76096164]
[1762183702421,0.14216157,170.23,169.85,0.7]
[1762183702624,0.69,170.24,169.85,0.7]
[1762183702625,0.14216157,170.21,169.85,0.7]
[1762183702824,20.56404229,170.2,169.77,5.8903222]
[1762183703124,0.14216157,170.19,169.77,20.6161277]
[1762183703356,0.69,170.19,169.85,29.76096164]
[1762183703530,0.69,170.27,169.89,29.44472023]
[1762183703841,5.86716733,170.44,170.01,0.14216157]
[1762183703842,8.43101315,170.41,170.01,0.14216157]
[1762183704041,0.69,170.43,170.02,0.14216157]
[1762183704370,8.43101315,170.28,170.02,0.84216157]
[1762183704669,79.43115115,170.44,170.02,0.7]
[1762183704670,0.69,170.27,170.02,0.7]
[1762183704830,0.69,170.27,170.04,5.88096918]
[1762183705030,1.99999999,170.34,170.03,6.02322333]
[1762183705230,1.99999999,170.4,170.09,29.66094108]
[1762183705447,1.99999999,170.35,170.09,0.14216157]
[1762183705629,1.99999999,170.45,170.12,29.41259012]
[1762183705824,10.43101314,170.39,170.11,0.14216157]
[1762183706053,1.99999999,170.33,170.13,0.14216157]
[1762183706237,1.99999999,170.33,170.12,0.7]
[1762183706238,0.69,170.44,170.15,0.14216157]
[1762183706451,0.69,170.44,170.17,0.14216157]
[1762183706764,1.99999999,170.52,170.19,0.14216157]
[1762183706765,8.43101315,170.52,170.19,0.14216157]
[1762183707055,0.69,170.48,170.21,0.14216157]
[1762183707368,1.99999999,170.57,170.21,0.14216157]
[1762183707569,1.99999999,170.57,170.2,20.56404229]
[1762183707570,8.43101315,170.54,170.23,0.14216157]
[1762183707853,1.99999999,170.34,170.1,5.87889476]
[1762183708030,1.99999999,170.28,170.1,5.87889476]
[1762183708230,1.99999999,170.28,170.09,0.7]
[1762183708430,1.99999999,170.29,170.09,0.7]
[1762183708634,1.99999999,170.31,170.02,50.42958113]
[1762183708833,1.99999999,170.29,170.1,5.87889476]
[1762183709035,8.43101315,170.25,170.02,0.7]
[1762183709344,1.99999999,170.27,170.02,0.7]
[1762183709345,0.69,170.26,170.02,0.7]
[1762183709734,2.68999999,170.41,170.06,29.25804673]
[1762183710059,1.99999999,170.51,170.1,47.10997808]
[1762183710265,1.99999999,170.47,170.13,0.14216157]
[1762183710552,0.69,170.51,170.15,0.14216157]
[1762183710772,1.99999999,170.53,170.18,0.21324235]
[1762183710933,0.69,170.52,170.22,0.14216157]
[1762183711131,1.99999999,170.44,170.22,0.84216157]
[1762183711367,1.99999999,170.44,170.13,0.7]
[1762183711531,8.43101315,170.31,170.06,0.7]
[1762183711727,0.14216157,170.36,170.06,0.7]
[1762183711728,0.69,170.3,170.06,0.7]
[1762183712239,0.71,170.37,170.08,17.24]
[1762183712552,0.71,170.37,170.06,0.7]
[1762183712553,8.43101315,170.31,170.06,0.7]
[1762183712754,0.71,170.37,169.99,5.88254694]
[1762183712755,0.14216157,170.35,169.99,5.88254694]
[1762183712954,0.71,170.37,169.91,29.42696615]
[1762183712955,0.14216157,170.31,169.96,0.7]
[1762183713165,8.43101315,170.2,169.96,6.58358542]
[1762183713456,0.71,170.3,169.96,6.58358542]
[1762183713675,0.71,170.3,169.97,0.7]
[1762183713833,0.14216157,170.29,169.87,0.7]
[1762183714151,0.14216157,170.14,169.87,21.303814]
[1762183714456,0.71,170.28,169.94,0.21324235]
[1762183714653,0.71,170.35,169.95,35.96485143]
[1762183714858,0.71,170.35,170.08,0.21324235]
[1762183715170,0.71,170.41,170.1,0.14216157]
[1762183715345,0.71,170.47,170.14,0.14216157]
[1762183715652,0.71,170.47,170.16,0.14216157]
[1762183715840,0.71,170.47,170.17,29.71021761]
[1762183716048,0.71,170.47,170.18,0.14216157]
[1762183716352,0.71,170.54,170.21,0.21324235]
[1762183716547,0.71,170.54,170.23,0.14216157]
[1762183716735,8.43101315,170.47,170.25,0.14216157]
[1762183716940,0.14216157,170.51,170.18,6.57591706]
[1762183717134,8.43101315,170.43,170.18,21.26624494]
[1762183717342,2.70999999,170.42,170.19,0.7]
[1762183717760,1.99999999,170.34,170.19,0.7]
[1762183718060,1.99999999,170.48,170.2,0.14216157]
[1762183718236,1.99999999,170.43,170.2,0.14216157]
[1762183718444,8.43101315,170.38,170.14,5.87734383]
[1762183718754,1.99999999,170.24,169.97,0.7]
[1762183719058,1.99999999,170.12,169.86,20.60520428]
[1762183719358,1.99999999,170.14,169.87,0.7]
[1762183719538,1.99999999,170.11,169.87,0.7]
[1762183719736,1.99999999,170.07,169.87,0.7]
[1762183719942,1.99999999,170.09,169.87,0.7]
[1762183720142,1.99999999,170.19,169.88,29.27548291]
[1762183720443,1.99999999,170.1,169.87,0.7]
[1762183720651,1.99999999,170.14,169.87,0.7]
[1762183720858,0.71,170.19,169.88,5.3464333]
[1762183721182,1.99999999,170.16,169.9,0.14216157]
[1762183721383,0.71,170.19,169.92,0.14216157]
[1762183721577,1.99999999,170.13,169.9,0.7]
[1762183721760,29.55206949,170.33,169.89,50.03237387]
[1762183721761,1.99999999,170.26,169.91,0.7]
[1762183721949,1.99999999,170.25,169.96,29.51868454]
[1762183722264,1.99999999,170.25,169.99,0.14216157]
[1762183722447,1.99999999,170.25,169.78,50.0]
[1762183722448,0.71,170.27,169.76,0.7]
[1762183722449,8.43101315,170.07,169.76,0.7]
[1762183722644,8.43101315,170.07,169.64,50.1]
[1762183722645,1.99999999,169.97,169.65,6.59448865]
[1762183722844,8.43101315,170.1,169.65,21.33071028]
[1762183722845,1.99999999,169.95,169.65,21.33071028]
[1762183723061,1.99999999,169.96,169.66,0.7]
[1762183723258,0.71,169.97,169.67,6.66303089]
[1762183723450,1.99999999,170.03,169.7,0.21324235]
[1762183723658,0.71,170.02,169.71,0.7]
[1762183723866,1.99999999,169.98,169.71,0.7]
[1762183724065,0.71,170.1,169.71,0.7]
[1762183724265,1.99999999,170.05,169.73,46.34769517]
[1762183724577,1.99999999,169.89,169.64,0.1]
[1762183724773,1.99999999,169.77,169.64,0.1]
[1762183724980,1.99999999,169.87,169.64,6.69468699]
[1762183725276,29.81917466,170.08,169.64,6.69468699]
[1762183725277,0.71,169.92,169.64,21.43177729]
[1762183725456,0.71,169.92,169.65,0.7]
[1762183725650,8.43101315,169.89,169.65,0.7]
[1762183725868,0.71,169.92,169.65,30.04857539]
[1762183726079,0.71,170.09,169.7,29.20087458]
[1762183726248,0.71,170.09,169.78,0.21324235]
[1762183726455,0.71,170.09,169.83,29.73515004]
[1762183726767,1.99999999,170.02,169.8,0.14216157]
[1762183726970,0.71,170.09,169.82,0.14216157]
[1762183727151,0.71,170.16,169.84,0.14216157]
[1762183727482,8.43101315,169.94,169.69,0.7]
[1762183727787,1.99999999,169.93,169.67,0.7]
[1762183727994,1.99999999,169.93,169.51,26.5]
[1762183727995,1.99999999,169.82,169.59,30.18222483]
[1762183728290,0.71,169.9,169.65,21.33071028]
[1762183728462,8.43101315,169.91,169.65,21.33071028]
[1762183728660,99.95018699,170.17,169.67,0.21324235]
[1762183728661,1.99999999,170.01,169.67,0.21324235]
[1762183728892,0.71,170.0,169.69,29.85402518]
[1762183729060,0.71,170.0,169.71,29.3747237]
[1762183729260,1.99999999,169.98,169.71,29.3747237]
[1762183729471,0.14216157,169.99,169.72,0.7]
[1762183729782,1.99999999,169.91,169.72,0.7]
[1762183729956,0.71,169.99,169.73,29.10769517]
[1762183730160,1.99999999,170.01,169.73,0.14216157]
[1762183730377,1.99999999,169.95,169.74,0.7]
[1762183730581,1.99999999,170.04,169.75,29.35884641]
[1762183730776,0.71,170.2,169.74,0.7]
[1762183730777,1.99999999,170.0,169.74,0.7]
[1762183730992,0.71,170.08,169.76,0.14216157]
[1762183731289,1.99999999,170.19,169.81,0.21324235]
[1762183731462,9.14101315,170.2,169.81,0.21324235]
[1762183731463,0.71,170.2,169.85,17.24]
[1762183731659,10.43101314,170.21,169.85,17.24]
[1762183731660,2.70999999,170.19,169.86,0.14216157]
[1762183731881,1.99999999,170.07,169.86,0.7]
[1762183732062,8.43101315,170.07,169.87,0.14216157]
[1762183732258,2.70999999,170.08,169.86,0.7]
[1762183732559,0.14216157,170.14,169.86,0.7]
[1762183732560,1.99999999,170.03,169.86,0.7]
[1762183732757,1.99999999,170.0,169.8,0.7]
[1762183732959,1.99999999,169.94,169.77,5.8903222]
[1762183733189,1.99999999,169.98,169.77,20.6161277]
[1762183733361,1.99999999,169.97,169.78,0.7]
[1762183733562,1.99999999,170.02,169.78,0.7]
[1762183733783,1.99999999,169.96,169.78,0.7]
[1762183733992,0.71,170.01,169.78,0.7]
[1762183734291,0.71,170.01,169.78,47.2849391]
[1762183734464,1.99999999,170.14,169.85,0.14216157]
[1762183734665,0.71,170.18,169.88,29.27548291]
[1762183734881,8.43101315,170.1,169.88,6.66303089]
[1762183735080,1.99999999,170.03,169.88,5.8863739]
[1762183735282,8.43101315,170.04,169.88,5.8863739]
[1762183735587,10.43101314,170.02,169.83,6.58824118]